bitfinex/quotes_SOLUSD_20220302
["timestamp","ask_amount","ask_price","bid_price","bid_amount"]
[1646186296173,44.41916108,98.329,98.26,27.4134]
[1646186298678,44.41916108,98.329,98.28,15.2602]
[1646186298876,44.41916108,98.329,98.29,12.15]
[1646186299978,44.41916108,98.329,98.29,27.4099]
[1646186300783,4.067,98.367,98.29,35.8799]
[1646186301180,4.067,98.372,98.29,35.8799]
[1646186301381,23.639,98.373,98.29,35.8799]
[1646186301580,23.639,98.373,98.291,23.748]
[1646186301782,54.65324652,98.372,98.291,23.748]
[1646186302580,102.1,98.371,98.29,12.15]
[1646186302781,4.067,98.37,98.29,12.15]
[1646186302980,54.65324652,98.372,98.29,12.15]
[1646186303582,5.0,98.363,98.29,12.15]
[1646186304182,54.65324652,98.372,98.29,27.4091]
[1646186305780,54.65324652,98.372,98.291,24.1509]
[1646186307285,54.65324652,98.372,98.3,15.2579]
[1646186307486,54.65324652,98.372,98.3,27.4079]
[1646186307888,54.65324652,98.372,98.3,12.15]
[1646186308087,54.65324652,98.372,98.25,66.5126]
[1646186308312,4.067,98.371,98.255,24.4181]
[1646186308512,4.067,98.371,98.26,12.15]
[1646186308713,5.0,98.363,98.26,27.4126]
[1646186308912,102.1,98.339,98.242,5.0]
[1646186309112,102.1,98.337,98.242,5.0]
[1646186309517,102.1,98.337,98.243,4.069]
[1646186309714,102.1,98.337,98.244,23.0107]
[1646186310016,1.15932652,98.328,98.241,4.069]
[1646186310220,0.28320976,98.327,98.19,50.9007]
[1646186310415,102.1,98.326,98.2,12.15]
[1646186310618,0.28320976,98.325,98.201,23.5162]
[1646186310815,4.07,98.324,98.201,23.5162]
[1646186311015,102.1,98.309,98.201,23.5162]
[1646186311215,102.1,98.307,98.201,23.5162]
[1646186312021,15.2719,98.3,98.201,23.5162]
[1646186312518,102.1,98.298,98.2,12.15]
[1646186312721,4.23478779,98.297,98.181,4.07]
[1646186312918,4.23478779,98.297,98.18,27.425]
[1646186313519,102.1,98.295,98.18,27.425]
[1646186313718,4.23478779,98.294,98.18,27.425]
[1646186313919,102.1,98.292,98.18,27.425]
[1646186314122,102.1,98.289,98.18,27.425]
[1646186314322,4.23478779,98.288,98.18,27.425]
[1646186314922,0.16478779,98.288,98.18,27.425]
[1646186315124,0.16478779,98.284,98.182,2.28419731]
[1646186315324,43.3158978,98.293,98.211,102.1]
[1646186315523,43.3158978,98.293,98.21,15.2655]
[1646186315524,43.3158978,98.293,98.222,7.40697748]
[1646186315723,43.3158978,98.293,98.223,102.1]
[1646186315926,43.3158978,98.293,98.223,141.95643312]
[1646186316123,43.3158978,98.293,98.225,102.1]
[1646186316523,43.3158978,98.293,98.227,102.1]
[1646186316725,43.3158978,98.293,98.24,12.15]
[1646186317127,43.3158978,98.293,98.25,15.2648]
[1646186317325,43.3158978,98.293,98.228,2.57366348]
[1646186317524,43.3158978,98.293,98.222,5.0]
[1646186318526,43.3158978,98.293,98.223,2.57366348]
[1646186319426,43.3158978,98.293,98.23,15.2684]
[1646186319629,42.8158978,98.293,98.24,12.15]
[1646186321028,42.8158978,98.293,98.24,27.416]
[1646186321429,48.2409,98.338,98.241,2.57366348]
[1646186321631,4.069,98.337,98.241,2.57366348]
[1646186321831,4.069,98.337,98.241,104.67366348]
[1646186322133,48.2409,98.338,98.241,104.67366348]
[1646186322134,48.2409,98.338,98.243,102.1]
[1646186322331,42.94321183,98.337,98.25,5.0]
[1646186322532,42.94321183,98.337,98.26,12.15]
[1646186323034,42.94321183,98.337,98.26,32.413]
[1646186323233,42.94321183,98.337,98.261,4.069]
[1646186323936,42.94321183,98.337,98.262,4.94095379]
[1646186324135,42.94321183,98.337,98.263,4.069]
[1646186324336,42.94321183,98.337,98.28,15.2607]
[1646186324537,42.94321183,98.337,98.29,12.15]
[1646186324740,47.5857,98.373,98.29,12.15]
[1646186325638,45.41864592,98.372,98.29,12.15]
[1646186326137,45.41864592,98.372,98.3,15.2577]
[1646186326337,45.41864592,98.372,98.31,12.15]
[1646186326639,45.41864592,98.372,98.3,15.2577]
[1646186326838,45.41864592,98.372,98.3,27.4077]
[1646186332747,45.41864592,98.372,98.3,12.15]
[1646186333848,0.13720964,98.371,98.28,12.15]
[1646186334048,4.067,98.37,98.28,12.15]
[1646186334249,102.1,98.369,98.28,12.15]
[1646186334467,4.1728718,98.368,98.253,2.57366348]
[1646186334664,5.53956286,98.368,98.25,12.15]
[1646186334865,0.32475774,98.365,98.25,12.15]
[1646186335066,0.32475774,98.363,98.25,12.15]
[1646186335267,102.1,98.356,98.25,12.15]
[1646186335464,15.2673,98.33,98.25,12.15]
[1646186335664,45.08844175,98.329,98.25,12.15]
[1646186335868,45.33430537,98.357,98.253,163.44]
[1646186336068,48.8513,98.42,98.262,102.1]
[1646186336269,5.0,98.41,98.277,102.1]
[1646186336469,48.8513,98.42,98.292,0.50032914]
[1646186336666,48.8513,98.42,98.295,0.50136595]
[1646186336867,63.94121687,98.419,98.311,104.06855485]
[1646186337068,59.87621687,98.419,98.314,0.50136595]
[1646186337268,59.87621687,98.419,98.314,2.80874965]
[1646186337467,59.87621687,98.419,98.316,102.1]
[1646186337669,59.87621687,98.419,98.33,12.15]
[1646186338167,59.87621687,98.419,98.34,15.2498]
[1646186338367,59.87621687,98.419,98.35,12.15]
[1646186340070,59.87621687,98.419,98.36,15.2494]
[1646186340272,59.87621687,98.419,98.36,27.3994]
[1646186340669,59.87621687,98.419,98.361,0.50136595]
[1646186340870,59.87621687,98.419,98.36,12.15]
[1646186341072,59.87621687,98.419,98.37,15.2479]
[1646186341270,27.1397,98.488,98.38,12.15]
[1646186341471,46.5587,98.477,98.381,0.50136595]
[1646186342271,45.9508007,98.476,98.381,0.50136595]
[1646186342469,45.9508007,98.476,98.382,26.38721902]
[1646186342671,45.9508007,98.476,98.384,0.50136595]
[1646186343071,45.9508007,98.476,98.401,0.50136595]
[1646186343273,45.9508007,98.476,98.41,12.15]
[1646186345071,45.9508007,98.476,98.41,27.3907]
[1646186347275,45.9508007,98.476,98.41,12.15]
[1646186348475,102.1,98.475,98.41,12.15]
[1646186349075,15.2455,98.47,98.41,12.15]
[1646186350277,102.1,98.469,98.41,12.15]
[1646186350477,15.2473,98.46,98.39,12.15]
[1646186350682,48.92225347,98.459,98.386,4.062]
[1646186351679,48.92225347,98.459,98.38,12.15]
[1646186352082,5.0,98.458,98.38,12.15]
[1646186353483,5.0,98.458,98.38,27.3956]
[1646186353685,48.92225347,98.459,98.38,27.3956]
[1646186360188,102.1,98.458,98.38,12.15]
[1646186360387,4.064,98.457,98.364,22.7259]
[1646186360589,102.1,98.456,98.364,22.7259]
[1646186360788,4.064,98.455,98.364,22.7259]
[1646186361390,102.1,98.449,98.36,12.15]
[1646186361589,4.064,98.448,98.36,12.15]
[1646186362488,56.32648481,98.429,98.36,12.15]
[1646186365391,56.32648481,98.429,98.36,35.93721902]
[1646186365990,56.32648481,98.429,98.36,51.18531902]
[1646186366395,56.32648481,98.429,98.36,27.3981]
[1646186368092,56.32648481,98.429,98.361,4.065]
[1646186368492,56.32648481,98.429,98.37,15.2468]
[1646186368694,56.32648481,98.429,98.38,12.15]
[1646186368898,4.064,98.475,98.38,12.15]
[1646186369296,23.9978,98.477,98.381,0.32724817]
[1646186369794,55.65721512,98.475,98.38,12.15]
[1646186369993,55.65721512,98.475,98.39,15.2435]
[1646186370195,55.65721512,98.475,98.4,12.15]
[1646186370996,55.65721512,98.475,98.4,20.78]
[1646186371402,55.65721512,98.475,98.42,15.2385]
[1646186372998,55.65721512,98.475,98.42,27.3885]
[1646186374104,4.062,98.504,98.42,27.3885]
[1646186374105,4.062,98.504,98.429,163.44]
[1646186374303,4.062,98.549,98.46,15.2311]
[1646186374502,47.1313,98.562,98.47,12.15]
[1646186374503,5.0,98.558,98.47,12.15]
[1646186374701,5.0,98.558,98.471,0.63812967]
[1646186374902,4.061,98.557,98.471,0.63812967]
[1646186375102,57.93614199,98.556,98.471,0.63812967]
[1646186375301,57.93614199,98.556,98.48,15.2301]
[1646186375302,4.061,98.555,98.48,15.2301]
[1646186375502,4.061,98.555,98.48,27.3801]
[1646186376207,57.93614199,98.556,98.481,3.21179315]
[1646186376404,57.93614199,98.556,98.49,15.225]
[1646186376607,57.93614199,98.556,98.5,12.15]
[1646186376805,57.93614199,98.556,98.501,0.63812967]
[1646186377605,57.93614199,98.556,98.5,20.23]
[1646186378005,57.93614199,98.556,98.51,15.225]
[1646186378208,57.93614199,98.556,98.51,27.375]
[1646186381210,0.00996528,98.523,98.51,27.375]
[1646186381610,0.00996528,98.523,98.511,0.26698173]
[1646186383637,0.00996528,98.523,98.513,0.61077196]
[1646186383837,5.0,98.606,98.54,15.2159]
[1646186384038,47.4247,98.638,98.551,0.70217685]
[1646186384237,4.057,98.637,98.551,0.70217685]
[1646186384440,4.057,98.671,98.551,102.80217685]
[1646186384638,5.0,98.658,98.551,102.80217685]
[1646186384840,4.056,98.657,98.551,102.80217685]
[1646186385441,5.0,98.658,98.559,163.44]
[1646186385638,5.0,98.668,98.571,102.1]
[1646186385838,5.0,98.668,98.58,12.15]
[1646186386038,5.0,98.668,98.59,12.15]
[1646186386239,5.0,98.668,98.6,12.15]
[1646186386440,52.93546346,98.67,98.61,12.15]
[1646186386639,52.93546346,98.67,98.62,12.15]
[1646186388442,52.93546346,98.67,98.621,0.70217685]
[1646186388642,52.93546346,98.67,98.62,12.15]
[1646186388843,52.93546346,98.67,98.6,12.15]
[1646186389042,68.15106346,98.67,98.6,12.15]
[1646186389245,2.55025772,98.669,98.585,5.0]
[1646186389646,1.26858248,98.667,98.58,12.15]
[1646186389843,4.054,98.666,98.55,12.15]
[1646186390043,45.7854,98.665,98.55,12.15]
[1646186390246,4.056,98.664,98.55,12.15]
[1646186390648,15.2175,98.66,98.55,12.15]
[1646186390846,4.056,98.659,98.55,12.15]
[1646186391248,2.55025772,98.659,98.55,12.15]
[1646186391445,5.0,98.663,98.55,12.15]
[1646186391446,6.60625772,98.658,98.55,12.15]
[1646186391850,2.55025772,98.657,98.55,12.15]
[1646186392645,5.0,98.646,98.55,12.15]
[1646186392845,50.43567457,98.645,98.55,12.15]
[1646186393047,52.98593229,98.645,98.55,12.15]
[1646186393247,2.55025772,98.644,98.55,12.15]
[1646186393649,4.056,98.643,98.532,4.056]
[1646186393852,23.9299,98.642,98.532,4.056]
[1646186394052,5.39778002,98.641,98.532,4.056]
[1646186394250,15.2272,98.6,98.532,4.056]
[1646186394651,59.6992886,98.599,98.502,5.0]
[1646186394857,62.24954632,98.599,98.502,5.0]
[1646186395053,59.6992886,98.599,98.502,5.0]
[1646186395253,6.60725772,98.598,98.502,5.0]
[1646186395457,15.228,98.59,98.502,5.0]
[1646186395655,5.4493202,98.589,98.469,24.1188]
[1646186395855,1.45050754,98.588,98.44,12.15]
[1646186396054,4.059,98.587,98.45,12.15]
[1646186396457,102.1,98.559,98.45,12.15]
[1646186396654,102.1,98.557,98.45,12.15]
[1646186396856,51.6751101,98.556,98.45,12.15]
[1646186397054,54.22536782,98.556,98.45,12.15]
[1646186397255,22.6105,98.555,98.45,12.15]
[1646186397559,102.1,98.549,98.45,12.15]
[1646186397756,5.0,98.523,98.45,12.15]
[1646186397956,48.13877724,98.522,98.45,12.15]
[1646186400458,48.13877724,98.522,98.441,47.3482]
[1646186400661,104.65025772,98.521,98.412,14.84228574]
[1646186400858,104.65025772,98.521,98.402,5.0]
[1646186400859,5.0,98.518,98.402,5.0]
[1646186401060,0.18825013,98.516,98.402,5.0]
[1646186401260,106.162,98.515,98.38,12.15]
[1646186401462,1.14241169,98.514,98.365,10.614071]
[1646186401665,15.2431,98.49,98.372,5.0]
[1646186401860,50.8672,98.489,98.372,5.0]
[1646186402286,102.1,98.488,98.35,12.15]
[1646186402486,1.15062932,98.485,98.34,12.15]
[1646186402688,15.2516,98.44,98.332,2.57366348]
[1646186402889,32.41366414,98.439,98.33,12.15]
[1646186403890,32.41366414,98.439,98.33,26.99228574]
[1646186404487,2.55668633,98.438,98.33,26.99228574]
[1646186406189,15.254,98.43,98.316,17.41594922]
[1646186406388,15.254,98.43,98.316,14.84228574]
[1646186406389,117.354,98.43,98.316,14.84228574]
[1646186406589,2.55668633,98.429,98.31,12.15]
[1646186407292,2.55668633,98.429,98.311,2.57366348]
[1646186407488,4.065,98.428,98.311,2.57366348]
[1646186407988,15.256,98.42,98.311,2.57366348]
[1646186408189,4.065,98.419,98.31,12.15]
[1646186408491,108.72168633,98.419,98.28,12.15]
[1646186408688,2.55668633,98.418,98.29,5.0]
[1646186408888,4.065,98.417,98.29,5.0]
[1646186409088,102.1,98.415,98.29,5.0]
[1646186409289,1.32179189,98.412,98.29,5.0]
[1646186409489,1.17072884,98.408,98.29,5.0]
[1646186409689,5.0,98.4,98.29,5.0]
[1646186409891,1.47262057,98.388,98.256,2.57366348]
[1646186410092,1.47262057,98.388,98.205,47.0797]
[1646186410093,4.067,98.387,98.23,12.15]
[1646186410298,1.26583224,98.385,98.24,12.15]
[1646186410492,4.067,98.384,98.232,2.57366348]
[1646186410791,15.2664,98.35,98.232,2.57366348]
[1646186410991,22.6664,98.35,98.232,2.57366348]
[1646186411395,104.65668633,98.349,98.23,12.15]
[1646186411693,15.2709,98.32,98.201,19.45254803]
[1646186411892,27.41366414,98.318,98.231,2.57366348]
[1646186412093,27.41366414,98.318,98.241,112.9]
[1646186412291,27.41366414,98.318,98.24,12.15]
[1646186412692,27.41366414,98.318,98.241,2.57366348]
[1646186421402,27.41366414,98.318,98.251,2.15750409]
[1646186421702,27.41366414,98.318,98.252,59.03189849]
[1646186421905,27.41366414,98.318,98.253,6.58497533]
[1646186422104,27.41366414,98.318,98.253,9.15863881]
[1646186422304,27.41366414,98.318,98.255,0.48805881]
[1646186422505,47.0989,98.359,98.263,0.51716839]
[1646186422707,47.0989,98.359,98.271,0.52679185]
[1646186423505,53.18838617,98.358,98.271,12.29245198]
[1646186426607,53.18838617,98.358,98.28,15.2588]
[1646186426808,53.18838617,98.358,98.281,0.52679185]
[1646186427216,53.18838617,98.358,98.282,2.57366348]
[1646186427410,4.067,98.404,98.283,0.71936696]
[1646186427614,4.067,98.404,98.285,102.81936696]
[1646186427811,24.75,98.405,98.29,15.2569]
[1646186428010,24.75,98.405,98.3,12.15]
[1646186428215,24.75,98.405,98.302,0.71936696]
[1646186428411,58.02936855,98.412,98.304,2.11931779]
[1646186428609,58.02936855,98.412,98.306,0.71936696]
[1646186428810,58.02936855,98.412,98.32,12.15]
[1646186429112,4.065,98.411,98.321,3.20302542]
[1646186429309,58.02936855,98.412,98.321,3.20302542]
[1646186429509,58.02936855,98.412,98.321,5.7766889]
[1646186429709,58.02936855,98.412,98.322,2.57366348]
[1646186429910,58.02936855,98.412,98.323,0.71936696]
[1646186430109,15.2563,98.41,98.307,0.71936696]
[1646186430310,4.065,98.409,98.3,12.15]
[1646186430514,4.065,98.411,98.3,12.15]
[1646186430913,4.065,98.411,98.28,15.2582]
[1646186431110,4.065,98.411,98.282,2.13578576]
[1646186431312,102.1,98.409,98.28,27.4082]
[1646186431514,102.1,98.389,98.28,12.15]
[1646186431712,102.1,98.386,98.28,12.15]
[1646186431913,4.067,98.385,98.28,12.15]
[1646186433013,102.1,98.379,98.28,12.15]
[1646186433215,106.167,98.379,98.28,12.15]
[1646186433617,114.237,98.379,98.25,12.15]
[1646186433813,102.1,98.377,98.25,12.15]
[1646186434011,4.067,98.376,98.25,12.15]
[1646186434213,5.0,98.353,98.25,12.15]
[1646186434412,102.1,98.349,98.25,12.15]
[1646186435616,15.2656,98.35,98.25,27.414]
[1646186436417,50.73180304,98.352,98.251,6.64266348]
[1646186436617,50.73180304,98.352,98.26,15.2625]
[1646186436817,50.73180304,98.352,98.27,12.15]
[1646186438019,50.73180304,98.352,98.28,15.2599]
[1646186441924,50.73180304,98.352,98.28,27.4099]
[1646186444137,50.73180304,98.352,98.264,2.46866304]
[1646186445735,50.73180304,98.352,98.26,27.4118]
[1646186446634,152.83180304,98.352,98.26,27.4118]
[1646186447036,50.73180304,98.352,98.26,27.4118]
[1646186448341,102.1,98.349,98.26,27.4118]
[1646186448936,102.1,98.349,98.26,12.15]
[1646186449236,102.1,98.339,98.244,4.067]
[1646186449436,4.069,98.338,98.244,4.067]
[1646186449638,0.24017137,98.337,98.169,10.6264637]
[1646186449837,114.68276592,98.337,98.18,12.15]
[1646186450036,5.0,98.318,98.18,12.15]
[1646186450237,102.1,98.309,98.18,12.15]
[1646186450437,4.07,98.308,98.18,12.15]
[1646186452041,15.2758,98.28,98.18,27.4252]
[1646186452241,102.1,98.277,98.18,27.4252]
[1646186452844,102.1,98.277,98.168,47.5506]
[1646186453040,102.1,98.277,98.162,5.0]
[1646186453441,102.1,98.269,98.162,5.0]
[1646186453646,0.10548713,98.267,98.11,2.33528919]
[1646186453841,1.46863818,98.264,98.11,12.15]
[1646186454041,102.1,98.249,98.113,2.57366348]
[1646186454241,102.1,98.247,98.113,2.57366348]
[1646186454441,102.1,98.244,98.115,54.49345714]
[1646186454640,4.073,98.243,98.115,54.49345714]
[1646186454842,102.1,98.239,98.115,54.49345714]
[1646186455042,102.1,98.219,98.114,2.57366348]
[1646186455242,109.13,98.219,98.114,2.57366348]
[1646186455444,109.13,98.219,98.092,2.57366348]
[1646186455643,102.1,98.217,98.092,2.57366348]
[1646186456043,102.1,98.215,98.093,53.92856996]
[1646186456248,102.1,98.213,98.093,53.92856996]
[1646186457043,102.1,98.209,98.1,15.2875]
[1646186457243,4.075,98.208,98.1,15.2875]
[1646186458048,15.2884,98.2,98.087,5.0]
[1646186458266,106.175,98.199,98.087,5.0]
[1646186458466,106.175,98.199,98.052,2.57366348]
[1646186458467,1.37009181,98.198,98.052,2.57366348]
[1646186458665,1.23534221,98.196,98.052,7.57366348]
[1646186458867,1.23534221,98.196,98.053,65.1309529]
[1646186458868,1.15532748,98.194,98.053,65.1309529]
[1646186459064,102.1,98.179,98.053,67.70461638]
[1646186459265,133.34877625,98.177,98.054,20.10690691]
[1646186459664,133.34877625,98.177,98.055,20.10690691]
[1646186459869,133.34877625,98.177,98.06,12.15]
[1646186460067,15.2936,98.17,98.06,27.4439]
[1646186460467,15.2936,98.17,98.061,17.53324343]
[1646186460665,15.2936,98.17,98.061,20.10690691]
[1646186460865,15.2936,98.17,98.061,17.53324343]
[1646186461066,31.24877625,98.177,98.062,24.69321164]
[1646186461267,31.24877625,98.177,98.062,38.44240879]
[1646186461469,31.24877625,98.177,98.063,24.9528014]
[1646186461666,31.24877625,98.177,98.063,56.23524198]
[1646186461869,31.24877625,98.177,98.081,23.19984915]
[1646186462069,31.24877625,98.177,98.09,12.15]
[1646186462269,31.24877625,98.177,98.091,0.34847666]
[1646186462469,31.24877625,98.177,98.091,56.32412888]
[1646186462670,31.24877625,98.177,98.091,55.97565222]
[1646186462870,31.24877625,98.177,98.092,20.10690691]
[1646186463069,31.24877625,98.177,98.101,44.63625355]
[1646186466074,31.24877625,98.177,98.111,0.29252559]
[1646186466578,47.7004,98.208,98.112,2.57366348]
[1646186466774,47.7004,98.208,98.121,0.57287294]
[1646186466974,47.7004,98.208,98.131,0.57287294]
[1646186467176,15.2812,98.24,98.15,15.28]
[1646186467376,4.073,98.239,98.151,0.57287294]
[1646186467578,55.10197314,98.238,98.151,29.05448573]
[1646186467777,55.10197314,98.238,98.16,12.15]
[1646186468176,55.10197314,98.238,98.161,0.57287294]
[1646186468377,55.10197314,98.238,98.171,44.63625355]
[1646186468576,55.10197314,98.238,98.181,0.57287294]
[1646186468776,55.10197314,98.238,98.172,0.57287294]
[1646186468977,55.10197314,98.238,98.171,44.63625355]
[1646186472889,102.1,98.259,98.171,44.63625355]
[1646186473089,102.1,98.259,98.171,52.28625355]
[1646186473491,102.1,98.259,98.177,5.0]
[1646186473699,102.1,98.267,98.18,15.2762]
[1646186473894,47.1929,98.268,98.18,15.2762]
[1646186473895,47.1929,98.268,98.181,0.5096178]
[1646186474092,47.1929,98.268,98.181,24.71960281]
[1646186474292,47.1929,98.268,98.182,27.59670169]
[1646186474490,51.95405702,98.277,98.183,0.54320247]
[1646186474789,51.95405702,98.277,98.183,25.56624068]
[1646186474993,51.95405702,98.277,98.2,15.2706]
[1646186475192,51.95405702,98.277,98.201,26.70450754]
[1646186475993,102.1,98.276,98.201,26.70450754]
[1646186476191,102.1,98.276,98.17,26.78364849]
[1646186476192,102.1,98.276,98.17,12.15]
[1646186476395,124.8919,98.276,98.135,1.9129239]
[1646186476593,102.1,98.274,98.14,12.15]
[1646186476991,102.1,98.269,98.14,17.15]
[1646186477195,102.1,98.249,98.141,50.92073902]
[1646186477392,125.69838436,98.247,98.141,50.92073902]
[1646186478394,125.69838436,98.247,98.15,15.28]
[1646186479398,102.1,98.239,98.141,50.92073902]
[1646186479995,15.2813,98.24,98.141,50.92073902]
[1646186479996,102.1,98.237,98.141,50.92073902]
[1646186480202,102.1,98.237,98.14,5.0]
[1646186480400,2.55671203,98.236,98.14,5.0]
[1646186480799,2.55671203,98.236,98.11,12.15]
[1646186481100,148.0721,98.235,98.125,5.0]
[1646186481299,51.95405702,98.228,98.13,15.2832]
[1646186481499,102.1,98.227,98.13,15.2832]
[1646186481904,51.95405702,98.228,98.143,23.03580063]
[1646186484110,51.95405702,98.228,98.15,15.2799]
[1646186484312,102.1,98.227,98.15,15.2799]
[1646186484523,102.1,98.227,98.143,23.03580063]
[1646186484922,51.95405702,98.228,98.143,23.03580063]
[1646186485722,102.1,98.227,98.143,23.03580063]
[1646186486125,15.2844,98.22,98.143,23.03580063]
[1646186486422,102.1,98.219,98.143,23.03580063]
[1646186487924,102.1,98.219,98.13,15.2821]
[1646186488125,102.1,98.209,98.127,5.0]
[1646186488322,102.1,98.209,98.092,2.57366348]
[1646186488524,102.1,98.207,98.092,2.57366348]
[1646186488924,102.1,98.205,98.093,57.95163368]
[1646186489825,102.1,98.205,98.094,2.57366348]
[1646186490025,15.2888,98.19,98.094,2.57366348]
[1646186490225,51.01247935,98.189,98.094,2.57366348]
[1646186490627,102.1,98.188,98.094,2.57366348]
[1646186491527,102.1,98.188,98.093,57.95163368]
[1646186492231,15.2909,98.18,98.093,57.95163368]
[1646186492427,102.1,98.179,98.093,57.95163368]
[1646186499237,102.1,98.167,98.093,57.95163368]
[1646186499637,102.1,98.167,98.078,2.57366348]
[1646186499839,24.53996203,98.168,98.075,5.0]
[1646186500639,24.53996203,98.168,98.076,58.44018198]
[1646186500842,102.1,98.167,98.076,58.44018198]
[1646186501443,102.1,98.159,98.076,58.44018198]
[1646186505247,102.1,98.159,98.077,5.0]
[1646186505648,102.1,98.159,98.078,17.58578271]
[1646186506147,102.1,98.159,98.077,5.0]
[1646186506346,102.1,98.166,98.077,5.0]
[1646186506549,102.1,98.147,98.076,58.44018198]
[1646186507551,102.1,98.147,98.077,17.6070115]
[1646186508052,102.1,98.147,98.067,17.6070115]
[1646186508650,102.1,98.147,98.068,51.41695506]
[1646186509051,102.1,98.147,98.069,17.6070115]
[1646186509552,102.1,98.139,98.069,17.6070115]
[1646186509750,107.97,98.139,98.069,17.6070115]
[1646186510150,4.077,98.138,98.037,17.6070115]
[1646186510352,102.1,98.137,98.037,17.6070115]
[1646186510550,52.8289,98.138,98.038,58.14842359]
[1646186510950,48.7519,98.138,98.039,17.6070115]
[1646186511151,48.7519,98.138,98.041,0.27279811]
[1646186511351,48.7519,98.138,98.048,0.27279811]
[1646186511751,102.1,98.137,98.049,17.6070115]
[1646186512153,102.1,98.137,98.048,17.6070115]
[1646186512754,108.87,98.137,98.048,17.6070115]
[1646186513154,108.87,98.137,98.039,17.6070115]
[1646186513756,4.077,98.136,98.039,17.6070115]
[1646186514155,102.1,98.127,98.039,17.6070115]
[1646186515160,102.1,98.119,98.039,17.6070115]
[1646186515558,102.1,98.119,98.021,17.6070115]
[1646186515757,102.1,98.117,98.021,17.6070115]
[1646186515958,110.89,98.117,98.021,17.6070115]
[1646186516158,102.1,98.116,98.022,55.1183527]
[1646186516359,15.303,98.1,98.022,55.1183527]
[1646186516559,51.01247935,98.099,98.022,55.1183527]
[1646186516762,102.1,98.098,98.023,17.6070115]
[1646186517663,102.1,98.098,98.004,4.078]
[1646186517861,102.1,98.098,98.0,5.0]
[1646186518060,102.1,98.098,98.009,17.6422959]
[1646186518279,102.1,98.089,98.009,17.6422959]
[1646186518478,109.9,98.089,97.991,24.0555574]
[1646186518876,109.9,98.089,97.985,5.0]
[1646186519078,102.1,98.087,97.964,4.078]
[1646186519279,102.1,98.079,97.962,4.078]
[1646186519477,4.08,98.078,97.951,4.08]
[1646186519678,4.08,98.078,97.952,5.0]
[1646186519679,102.1,98.077,97.952,5.0]
[1646186519879,24.02999675,98.075,97.952,5.0]
[1646186520081,106.181,98.074,97.953,17.65566132]
[1646186520283,153.11247935,98.059,97.953,17.65566132]
[1646186520479,102.1,98.057,97.95,13.4717291]
[1646186521080,102.1,98.039,97.95,13.4717291]
[1646186521279,102.1,98.037,97.95,13.4717291]
[1646186522081,24.02999675,98.038,97.95,13.4717291]
[1646186522483,4.081,98.037,97.951,17.6309668]
[1646186523284,106.181,98.037,97.95,13.4717291]
[1646186523483,4.081,98.037,97.95,13.4717291]
[1646186523686,4.081,98.037,97.951,17.62550541]
[1646186523986,24.02999675,98.038,97.955,5.0]
[1646186524486,24.02999675,98.038,97.956,17.62550541]
[1646186524785,24.02999675,98.038,97.957,2.22941729]
[1646186524985,24.02999675,98.038,97.957,7.22941729]
[1646186525185,24.02999675,98.038,97.957,2.22941729]
[1646186525388,24.02999675,98.038,97.965,5.0]
[1646186525585,24.02999675,98.038,97.967,2.34605896]
[1646186526188,15.3102,98.06,97.967,2.34605896]
[1646186526584,15.3102,98.06,97.968,2.57366348]
[1646186526986,15.3102,98.06,97.97,15.3082]
[1646186527185,47.12719869,98.057,97.971,0.24827225]
[1646186527385,47.12719869,98.057,97.972,5.0]